bitfinex/quotes_ETHUSD_20250802
["timestamp","ask_amount","ask_price","bid_price","bid_amount"]
[1754156397274,0.9327,3471.0,3470.6,0.002]
[1754156397637,0.96145231,3470.9,3470.6,0.002]
[1754156397853,0.9327,3470.9,3470.6,0.002]
[1754156398053,0.9327,3470.8,3470.6,0.002]
[1754156398491,0.55,3471.2,3470.6,0.002]
[1754156398690,0.9327,3470.7,3470.6,0.002]
[1754156401702,1.4827,3470.7,3470.6,0.002]
[1754156402001,2.40512231,3470.7,3470.6,0.002]
[1754156402609,2.37637,3470.7,3470.6,0.002]
[1754156402983,2.40512231,3470.7,3470.6,0.002]
[1754156403802,32.40512231,3470.7,3470.6,0.002]
[1754156403979,32.37637,3470.7,3470.6,0.002]
[1754156404885,32.58925194,3470.7,3470.6,0.002]
[1754156405713,6.83037,3470.7,3470.6,0.002]
[1754156405895,4.4827,3470.7,3470.6,0.002]
[1754156406098,8.9367,3470.7,3470.6,0.002]
[1754156406295,4.4827,3470.7,3470.6,0.002]
[1754156406477,8.9377,3470.7,3470.6,0.002]
[1754156408508,8.9357,3470.7,3470.6,0.002]
[1754156408677,4.4827,3470.7,3470.6,0.002]
[1754156408875,8.9357,3470.7,3470.6,0.002]
[1754156409387,8.4541,3470.7,3470.6,0.002]
[1754156410232,7.453,3470.7,3470.6,0.002]
[1754156410380,8.3857,3470.7,3470.6,0.002]
[1754156412033,39.77427,3470.7,3470.6,0.002]
[1754156415714,39.86454446,3470.7,3470.6,0.002]
[1754156418243,39.86254446,3470.7,3470.6,0.002]
[1754156420353,40.15114446,3470.7,3470.6,0.002]
[1754156420650,40.84065982,3470.7,3470.6,0.002]
[1754156420846,40.43998446,3470.7,3470.6,0.002]
[1754156421146,10.43998446,3470.7,3470.6,0.002]
[1754156421311,40.43998446,3470.7,3470.6,0.002]
[1754156422922,53.44098446,3470.7,3470.6,0.002]
[1754156423436,53.15238446,3470.7,3470.6,0.002]
[1754156424261,40.15138446,3470.7,3470.6,0.002]
[1754156424817,46.68195103,3470.7,3470.6,0.002]
[1754156425579,47.08262639,3470.7,3470.6,0.002]
[1754156426067,60.08362639,3470.7,3470.6,0.002]
[1754156426275,30.08362639,3470.7,3470.6,0.002]
[1754156426433,60.08362639,3470.7,3470.6,0.002]
[1754156426923,0.55,3470.4,3468.7,0.4722]
[1754156427122,0.55,3470.4,3465.7,0.103]
[1754156427123,30.0,3470.0,3468.9,6.53056657]
[1754156427359,7.54927446,3469.9,3469.5,6.53056657]
[1754156427543,0.09027446,3469.8,3469.6,0.65305666]
[1754156427721,30.0,3470.2,3469.7,0.4886]
[1754156427922,4.54928367,3470.1,3469.8,0.0164]
[1754156428122,30.11903598,3470.0,3469.9,0.4722]
[1754156428326,3.55,3469.7,3469.4,0.4722]
[1754156428529,4.55028367,3469.6,3469.4,0.4722]
[1754156428869,3.0,3469.6,3469.5,0.4886]
[1754156429041,7.55027959,3469.6,3469.5,0.4886]
[1754156429655,7.55027959,3469.6,3469.5,10.00126096]
[1754156429656,4.55227959,3469.6,3469.5,10.00126096]
[1754156429834,0.09027959,3469.6,3469.5,11.00138706]
[1754156430025,4.462,3469.7,3469.5,11.00138706]
[1754156430225,4.462,3469.7,3469.5,1.0165261]
[1754156430433,4.462,3469.7,3469.6,0.4886]
[1754156430864,4.462,3469.7,3469.6,0.4722]
[1754156432064,3.0,3470.2,3469.6,0.4886]
[1754156432263,4.55227108,3470.1,3469.7,0.0164]
[1754156432466,0.09027108,3470.0,3469.8,0.4886]
[1754156432771,0.09027108,3470.1,3469.9,0.0164]
[1754156432946,0.09027108,3470.1,3470.0,0.4722]
[1754156433153,0.09025904,3470.1,3470.0,0.4886]
[1754156433321,4.468,3470.4,3470.0,1.4887261]
[1754156433526,4.468,3470.4,3470.1,0.4886]
[1754156434022,4.468,3470.4,3470.2,0.0164]
[1754156434238,4.468,3470.4,3470.3,0.4886]
[1754156435964,1.0125,3471.4,3470.3,0.63747261]
[1754156435965,30.0,3471.4,3470.3,0.63747261]
[1754156436165,4.55624682,3471.3,3470.4,0.4886]
[1754156436323,0.09024682,3471.2,3470.4,0.4886]
[1754156436840,0.09024682,3471.2,3470.5,0.0164]
[1754156437148,0.09024682,3471.2,3470.6,0.4722]
[1754156439181,3.0,3471.0,3470.1,0.4722]
[1754156439362,30.0,3470.8,3470.1,0.4722]
[1754156439540,5.3859,3470.9,3470.1,0.4722]
[1754156439739,4.465,3470.9,3470.1,0.4722]
[1754156440483,4.465,3470.9,3470.2,0.4722]
[1754156440640,4.465,3470.9,3469.8,9.51266096]
[1754156440846,0.9209,3470.8,3469.9,1.4234661]
[1754156441177,0.9209,3470.8,3470.0,0.4722]
[1754156441558,1.4709,3470.7,3469.4,0.4722]
[1754156441761,1.4709,3470.7,3470.2,0.002]
[1754156441762,0.55,3470.5,3470.2,0.002]
[1754156441974,3.0,3470.3,3470.2,0.002]
[1754156442163,3.09026551,3470.3,3470.2,0.002]
[1754156442568,4.03991782,3470.3,3470.2,0.002]
[1754156442858,4.49965231,3470.3,3470.2,0.002]
[1754156443260,34.58992052,3470.3,3470.2,0.002]
[1754156443594,37.42941528,3470.3,3470.2,0.002]
[1754156446793,37.41918528,3470.3,3470.2,0.002]
[1754156447302,7.41918528,3470.3,3470.2,0.002]
[1754156447498,47.55293821,3470.3,3470.2,0.002]
[1754156447851,37.72113346,3470.3,3470.2,0.002]
[1754156448094,58.2403984,3470.3,3470.2,0.002]
[1754156448398,58.79595586,3470.3,3470.2,0.002]
[1754156448769,58.42869092,3470.3,3470.2,0.002]
[1754156449103,61.29693799,3470.3,3470.2,0.002]
[1754156449268,61.29693799,3470.3,3467.7,0.4722]
[1754156449269,3.55,3469.6,3467.7,0.4722]
[1754156449473,3.55,3469.2,3467.7,0.4722]
[1754156449657,3.55,3468.8,3467.7,0.4722]
[1754156449861,0.55,3468.5,3467.7,0.4722]
[1754156450062,3.55,3468.3,3467.7,0.4722]
[1754156450263,4.465,3468.2,3467.7,0.4722]
[1754156450759,4.465,3468.2,3467.3,0.0164]
[1754156450959,4.465,3468.2,3467.8,0.4722]
[1754156451256,4.465,3468.2,3467.3,0.9693061]
[1754156451571,4.465,3468.2,3467.5,0.4722]
[1754156451882,4.465,3468.2,3467.5,0.4222]
[1754156452086,4.465,3468.2,3467.6,0.002]
[1754156453576,4.461,3468.1,3467.6,9.53106096]
[1754156453902,4.461,3468.1,3467.7,0.53823903]
[1754156454099,0.4787,3468.7,3467.8,0.4314]
[1754156454264,4.462,3468.6,3467.8,0.4478]
[1754156454957,4.462,3468.5,3467.8,0.4478]
[1754156455164,0.4358,3468.9,3467.8,0.4478]
[1754156455484,4.462,3468.8,3467.9,0.99814199]
[1754156455688,4.461,3468.7,3467.9,0.9693061]
[1754156455883,4.461,3468.7,3468.0,0.4314]
[1754156456085,0.02875231,3468.6,3468.0,0.4314]
[1754156456300,5.3755,3468.7,3467.6,9.51466096]
[1754156456503,5.3755,3468.7,3467.7,0.4314]
[1754156457710,0.02875231,3468.6,3467.7,0.4314]
[1754156458008,1.4645,3468.5,3467.7,0.4314]
[1754156458300,0.9145,3468.4,3467.6,0.002]
[1754156458506,4.461,3468.3,3467.6,0.002]
[1754156459004,4.9397,3468.3,3467.6,0.002]
[1754156459502,0.9145,3468.2,3467.6,0.002]
[1754156460481,0.4787,3468.7,3467.6,0.002]
[1754156460706,3.0,3468.5,3467.7,9.96046096]
[1754156460881,3.0,3468.5,3467.8,0.4314]
[1754156461211,3.0,3468.5,3467.6,0.002]
[1754156461507,3.0,3468.5,3467.9,0.4314]
[1754156461874,3.4358,3468.5,3467.7,9.51266096]
[1754156462074,3.4358,3468.5,3467.7,10.46412706]
[1754156462275,3.4358,3468.5,3467.7,10.89552706]
[1754156462697,30.0,3468.4,3467.6,0.002]
[1754156462879,0.9145,3468.4,3467.6,0.002]
[1754156463076,0.9145,3468.3,3467.6,0.002]
[1754156463309,5.01,3468.2,3467.6,0.002]
[1754156463634,0.55,3468.0,3467.6,0.002]
[1754156463832,1.14532523,3468.0,3467.6,0.002]
[1754156464129,0.9145,3467.9,3467.6,0.002]
[1754156464422,4.46,3467.8,3467.6,0.002]
[1754156464775,5.3745,3467.8,3467.6,0.002]
[1754156465800,4.46,3467.8,3467.6,0.002]
[1754156465986,0.9145,3467.7,3467.6,0.002]
[1754156467178,4.46,3467.8,3467.6,0.002]
[1754156467498,4.457,3467.7,3467.6,0.4334]
[1754156467809,4.458,3467.9,3467.6,1.4444061]
[1754156468115,4.459,3468.1,3467.7,0.4478]
[1754156468312,4.459,3468.1,3467.8,0.4314]
[1754156468474,4.459,3468.1,3467.6,0.002]
[1754156468679,5.3735,3468.1,3467.6,0.002]
[1754156469316,0.4358,3468.0,3467.6,0.002]
[1754156469900,4.9377,3468.1,3467.6,0.002]
[1754156470416,4.459,3468.1,3467.7,0.4314]
[1754156470617,4.459,3468.0,3467.8,9.94406096]
[1754156470914,4.458,3468.2,3467.9,1.42888985]
[1754156471115,4.458,3468.2,3467.9,0.4314]
[1754156471615,4.458,3468.2,3467.6,0.002]
[1754156471833,4.458,3468.2,3466.0,0.12666432]
[1754156471834,30.0,3466.6,3466.0,0.12666432]
[1754156471988,21.05674965,3468.1,3466.0,0.12666432]
[1754156471989,30.55,3466.4,3466.0,0.12666432]
[1754156472178,30.0,3466.1,3466.0,0.12666432]
[1754156472379,34.38916297,3466.1,3466.0,0.12666432]
[1754156472587,38.530255,3466.1,3466.0,0.12666432]
[1754156472831,37.644355,3466.1,3466.0,0.12666432]
[1754156473037,38.530255,3466.1,3466.0,0.12666432]
[1754156473202,41.39850207,3466.1,3466.0,0.12666432]
[1754156473523,36.84450207,3466.1,3466.0,0.12666432]
[1754156473688,42.98647102,3466.1,3466.0,0.12666432]
[1754156473884,12.98647102,3466.1,3466.0,0.12666432]
[1754156474089,42.98647102,3466.1,3466.0,0.12666432]
[1754156474284,43.48814165,3466.1,3466.0,0.12666432]
[1754156474511,43.48814165,3466.1,3466.0,0.12866432]
[1754156475116,43.39778665,3466.1,3466.0,0.12866432]
[1754156476133,45.99427363,3466.1,3466.0,0.12866432]
[1754156476340,59.01227363,3466.1,3466.0,0.12866432]
[1754156476709,59.47662317,3466.1,3466.0,0.12866432]
[1754156477038,0.55,3464.8,3463.9,0.4645]
[1754156477271,3.55,3464.4,3463.5,0.4712]
[1754156477559,0.55,3463.3,3460.9,0.4712]
[1754156477835,4.93465231,3464.3,3459.7,6.937]
[1754156477836,7.22638,3464.4,3462.8,7.36482804]
[1754156478040,4.575,3464.3,3463.3,7.36482804]
[1754156478261,4.575,3464.3,3462.6,3.0]
[1754156478262,4.59,3464.2,3463.4,0.9357]
[1754156478412,4.59,3464.1,3463.4,0.9357]
[1754156478749,4.6,3464.0,3463.4,0.9357]
[1754156478903,0.55,3464.7,3462.6,3.0]
[1754156478904,4.6,3463.9,3463.5,0.9357]
[1754156479107,4.6,3463.8,3463.6,0.9357]
[1754156479418,4.6,3463.8,3463.7,0.9357]
[1754156480149,3.55,3464.7,3463.7,0.9357]
[1754156480357,3.0,3464.5,3463.8,0.9357]
[1754156480514,3.0,3464.5,3463.9,0.4645]
[1754156481221,30.0,3464.8,3464.0,0.4712]
[1754156481419,3.0,3464.6,3464.1,0.4645]
[1754156481640,3.0,3464.6,3462.8,1.03937072]
[1754156481641,0.55,3464.5,3463.8,0.4645]
[1754156481957,1.0287,3464.5,3462.4,7.36482804]
[1754156482108,30.0,3464.2,3463.2,0.4537]
[1754156482302,4.611,3464.1,3463.2,0.4537]
[1754156482535,4.611,3464.1,3463.3,0.4701]
[1754156482804,5.47923,3464.1,3463.4,0.4537]
[1754156483265,5.47923,3464.1,3463.5,0.4701]
[1754156483622,0.86823,3464.1,3463.6,0.4537]
[1754156483819,4.608,3464.0,3463.7,0.4701]
[1754156484019,4.608,3463.9,3463.8,0.4701]
[1754156484272,4.608,3463.9,3463.8,0.9238]
[1754156484450,4.607,3464.0,3463.8,0.9238]
[1754156484652,0.4701,3464.6,3463.0,0.02887669]
[1754156484811,3.0,3464.4,3463.9,0.9238]
[1754156485006,3.0,3464.4,3463.2,0.02887502]
[1754156485239,3.0,3464.4,3463.3,0.9238]
[1754156485554,3.0,3464.4,3463.4,0.95267336]
[1754156485841,3.0,3464.4,3463.5,0.9238]
[1754156486043,0.09041493,3464.3,3463.6,0.9238]
[1754156486349,0.09041493,3464.2,3463.7,0.4537]
[1754156486544,4.69441493,3464.1,3463.8,0.9238]
[1754156486844,0.09041493,3464.0,3463.9,0.9238]
[1754156487047,0.09041493,3464.0,3463.6,0.9238]
[1754156487204,0.09041493,3463.9,3463.0,0.002]
[1754156487410,0.09041493,3463.8,3463.6,7.36482804]
[1754156487644,0.09041493,3463.7,3463.6,7.36482804]
[1754156487942,0.09041493,3463.7,3463.6,7.83492804]
[1754156488146,4.602,3464.4,3463.6,7.83492804]
[1754156488453,4.602,3464.4,3463.7,0.9238]
[1754156488658,4.602,3464.4,3463.8,0.8288628]
[1754156488952,4.601,3464.4,3463.9,0.9238]
[1754156489244,4.601,3464.5,3464.0,0.9238]
[1754156489447,0.09040543,3464.4,3464.1,0.9238]
[1754156489618,4.599,3464.5,3464.2,0.9238]
[1754156489822,4.599,3464.5,3464.3,0.9238]
[1754156490022,3.0,3464.9,3464.4,0.9238]
[1754156490258,0.09040355,3464.8,3463.8,0.8288628]
[1754156490411,0.09040355,3464.8,3463.9,0.9238]
[1754156490735,0.09040355,3464.8,3464.0,0.9238]
[1754156491362,0.09040355,3464.8,3464.1,0.9238]
[1754156491645,0.09040355,3464.8,3464.2,0.9238]
[1754156493359,3.0,3464.9,3464.2,0.9238]
[1754156493360,0.09040355,3464.7,3464.2,0.9238]
[1754156493564,0.09040355,3464.8,3464.3,0.4537]
[1754156493760,0.09040355,3464.7,3464.4,0.4701]
[1754156494077,0.09040355,3464.8,3464.4,0.4701]
[1754156494275,3.0,3464.9,3464.5,0.9238]
[1754156494276,0.09040355,3464.7,3464.5,0.9238]
[1754156494570,0.8054044,3465.5,3463.9,7.36482804]
[1754156494571,0.09040355,3464.6,3463.9,7.36482804]
[1754156494773,4.593,3465.0,3464.0,0.7364828]
[1754156495068,4.593,3464.9,3464.1,0.9238]
[1754156495284,0.09040196,3464.8,3464.0,0.7364828]
[1754156495603,0.09040196,3464.7,3464.2,0.9238]
[1754156495750,0.09040196,3464.6,3464.1,0.75466233]
[1754156495955,0.09040196,3464.5,3464.3,0.9238]
[1754156496273,0.09040196,3464.8,3464.4,0.9238]
[1754156496439,0.09040196,3464.7,3464.5,0.9238]
[1754156496647,4.591,3465.4,3464.6,0.9238]
[1754156496866,0.09040196,3465.3,3464.7,0.9238]
[1754156497173,0.09040196,3465.3,3464.8,0.9238]
[1754156497363,0.09040196,3465.3,3464.9,0.9238]
[1754156497881,0.09040196,3465.5,3465.0,0.9238]
[1754156498043,0.09040196,3465.4,3465.0,0.4701]
[1754156498237,0.09040196,3465.3,3465.1,0.4537]
[1754156498456,0.09040196,3465.2,3465.1,0.4537]
[1754156498743,0.09040196,3465.5,3465.1,0.9238]
[1754156498966,0.09040196,3465.5,3464.4,7.36482804]
[1754156498967,0.09040196,3465.4,3465.2,0.9238]
[1754156499163,0.09040196,3465.5,3465.3,0.9238]
[1754156499374,3.0,3465.6,3465.4,0.9238]
[1754156499581,0.09038248,3465.5,3465.4,0.9238]
[1754156502051,0.09038248,3465.5,3465.4,8.28862804]
[1754156502282,0.09038248,3466.0,3465.4,9.02511084]
[1754156502487,0.09038248,3466.0,3465.4,8.10131084]
[1754156502692,0.09038248,3466.3,3465.5,0.95265586]
[1754156502992,0.09038248,3466.2,3465.6,0.9238]
[1754156503167,0.09038248,3466.4,3465.7,0.9238]
[1754156503361,0.09038248,3466.4,3465.8,0.9238]
[1754156503685,0.09038248,3466.4,3465.9,0.9238]
[1754156504077,0.001,3466.5,3466.0,0.9238]
[1754156504272,0.001,3466.5,3465.5,0.75466233]
[1754156504475,0.001,3466.5,3465.6,0.4537]
[1754156504788,30.0,3466.3,3465.1,0.4537]
[1754156505085,5.13528248,3466.2,3465.2,0.4701]
[1754156505286,4.00318248,3466.1,3465.2,0.4701]
[1754156505449,0.09038248,3466.0,3465.3,0.4537]
[1754156505654,0.4679,3466.2,3465.4,0.4701]
[1754156505655,3.0,3466.1,3465.4,0.4701]
[1754156505888,0.4459,3466.5,3465.5,0.4537]
[1754156506206,4.579,3466.1,3465.6,0.4701]
[1754156506491,0.09036443,3466.0,3465.0,0.4537]
[1754156506662,1.00316443,3466.0,3465.0,0.9238]
[1754156506866,0.55826443,3465.9,3465.0,0.9238]
[1754156507076,0.4679,3465.9,3465.0,0.9238]
[1754156507278,0.09037171,3465.8,3465.0,0.9238]
[1754156507686,0.4679,3465.7,3465.0,0.4537]
[1754156507912,0.4679,3465.7,3464.7,0.9238]
[1754156508063,0.09038103,3465.6,3464.7,0.9238]
[1754156508999,0.4679,3465.5,3464.7,1.77398]
[1754156509413,0.4679,3465.5,3463.8,0.144]
[1754156509414,0.4449,3465.4,3464.2,0.4537]
[1754156509567,0.09038887,3465.3,3464.2,0.4537]
[1754156509761,0.9128,3465.2,3464.2,0.4537]
[1754156509963,1.00318887,3465.1,3464.1,0.4701]
[1754156510193,0.09039769,3465.0,3464.1,0.4701]
[1754156510418,0.55829769,3465.0,3464.1,0.4701]
[1754156510696,4.576,3465.1,3464.2,0.02886669]
[1754156510900,4.576,3465.1,3464.3,0.9238]
[1754156511264,4.576,3465.1,3464.3,0.4701]
[1754156511459,0.4679,3465.6,3464.4,0.4537]
[1754156511798,0.457,3467.3,3464.9,7.36482804]
[1754156511995,0.09036976,3466.6,3465.0,0.76534282]
[1754156512177,3.0,3466.3,3465.0,1.73104282]
[1754156512376,0.09036976,3466.2,3465.1,0.9657]
[1754156512573,0.09036976,3466.2,3465.4,7.36482804]
[1754156512779,0.001,3466.5,3465.5,0.99455586]
[1754156513104,0.001,3466.5,3465.9,7.36482804]
[1754156513297,0.001,3466.5,3466.0,0.0288517]
[1754156513462,0.001,3466.5,3466.0,0.9945517]
[1754156513905,0.001,3466.5,3466.1,0.9657]
[1754156514059,0.001,3466.5,3466.4,7.36482804]
[1754156514264,0.001,3466.5,3466.4,8.10131084]
[1754156514468,0.001,3466.5,3466.4,9.06701084]
[1754156517708,0.001,3466.5,3466.4,12.06701084]
[1754156518140,0.001,3466.5,3466.4,12.61701084]
[1754156518308,0.457,3468.1,3466.5,3.0]
[1754156518612,0.4595,3468.4,3466.4,12.76101084]
[1754156518613,0.4595,3468.4,3467.5,7.36482804]
[1754156519114,0.458,3468.5,3467.6,0.02883838]
[1754156519275,0.458,3468.5,3467.6,0.99453838]
[1754156519471,0.458,3468.5,3467.7,0.7364828]
[1754156519707,0.458,3468.5,3467.8,0.02883672]
[1754156520416,0.001,3468.5,3467.8,0.52683672]
[1754156520614,0.001,3468.5,3467.8,0.99453672]
[1754156521187,0.001,3468.5,3467.8,0.49653672]
[1754156521387,0.001,3468.5,3467.9,0.498]
[1754156521592,0.001,3468.5,3468.0,0.20193701]
[1754156522223,0.001,3468.5,3468.1,0.498]
[1754156522423,0.001,3468.5,3468.2,0.0288334]
[1754156522624,0.001,3468.5,3467.8,0.02883672]
[1754156522789,0.457,3468.4,3467.9,0.17310195]
[1754156522989,0.457,3468.4,3468.0,0.02883506]
[1754156523420,0.457,3468.4,3467.9,0.17310195]
[1754156523924,0.001,3468.5,3467.4,0.498]
[1754156523925,0.9165,3468.3,3467.4,0.498]
[1754156524229,0.001,3468.5,3467.5,0.4677]
[1754156524547,0.001,3468.5,3467.6,0.02883838]
[1754156524882,0.001,3468.5,3467.6,0.52683838]
[1754156525188,0.001,3468.5,3467.7,0.4677]
[1754156525387,0.001,3468.5,3467.8,0.02883672]
[1754156526012,0.001,3468.5,3467.8,0.52683672]
[1754156526322,0.001,3468.5,3467.9,0.4677]
[1754156527031,0.001,3468.5,3468.0,0.498]
[1754156527330,0.001,3468.5,3467.9,0.4677]
[1754156528026,0.001,3468.5,3467.0,3.144]
[1754156528193,0.457,3468.4,3467.5,0.498]
[1754156530041,0.457,3468.4,3467.6,0.4677]
[1754156530397,0.457,3468.4,3467.7,0.498]
[1754156531629,0.457,3468.4,3467.8,0.02883672]
[1754156532338,0.457,3468.4,3467.7,0.498]
[1754156533306,0.457,3468.4,3467.7,0.52683755]
[1754156533605,0.457,3468.4,3467.7,0.498]
[1754156536520,0.457,3468.4,3467.1,5.0137]
[1754156536828,0.001,3468.5,3467.3,7.36482804]
[1754156537020,0.001,3468.5,3467.4,0.02884005]
[1754156537421,0.001,3468.5,3467.5,0.9657]
[1754156537608,0.458,3468.5,3467.5,0.9657]
[1754156537810,0.458,3468.5,3467.6,0.498]
[1754156538633,0.9175,3468.5,3467.0,3.0]
[1754156538833,0.94525231,3468.4,3467.0,4.541]
[1754156539035,0.001,3468.5,3467.1,0.498]
[1754156539345,0.9165,3468.4,3467.1,0.498]
[1754156539505,1.03556429,3468.3,3467.0,0.4677]
[1754156539709,1.00681198,3468.2,3466.7,3.9657]
[1754156539942,0.9165,3468.1,3466.7,3.9657]
[1754156540128,0.9165,3468.1,3466.4,6.939]
[1754156540129,1.00682387,3468.0,3466.5,0.498]
[1754156540330,5.48525231,3467.9,3466.5,0.498]
[1754156540519,0.457,3467.8,3466.6,7.86137474]
[1754156540733,0.457,3467.8,3466.7,0.9657]
[1754156541057,0.457,3467.8,3466.8,0.9657]
[1754156541344,0.09031916,3467.7,3466.9,0.498]
[1754156541548,0.09031916,3467.7,3466.9,1.3310528]
[1754156542215,0.09031916,3467.6,3466.9,1.3310528]
[1754156542416,0.09031916,3467.7,3466.9,0.8330528]
[1754156542767,0.09031916,3467.6,3467.0,0.9335]
[1754156542912,0.09031916,3467.5,3467.0,0.9335]
[1754156543114,0.09031916,3467.7,3467.0,1.11015528]
[1754156543348,0.58421916,3467.6,3467.0,0.17665528]
[1754156543659,0.09031916,3467.5,3466.7,0.9335]
[1754156543812,1.01601916,3467.4,3466.5,0.002]
[1754156544012,0.58421916,3467.3,3466.5,0.002]
[1754156544348,0.09031916,3467.2,3466.5,0.002]
[1754156545249,1.01601916,3467.2,3466.5,0.002]
[1754156545450,0.09033437,3467.1,3466.5,0.002]
[1754156545828,0.9257,3467.1,3466.5,0.002]
[1754156546022,0.09033437,3467.0,3466.5,0.002]
[1754156546418,0.9257,3466.9,3466.5,0.002]
[1754156546831,0.21359517,3467.3,3466.5,0.002]
[1754156547149,0.58423969,3467.2,3466.5,0.002]
[1754156547311,0.09033969,3467.1,3466.5,0.4696]
[1754156547511,0.4318,3467.4,3466.6,0.4659]
[1754156547721,0.09033328,3467.3,3466.7,0.4676]
[1754156549016,0.09033328,3467.4,3466.7,0.4676]
[1754156549412,0.09033328,3467.4,3466.8,0.49474504]
[1754156549718,0.09033328,3467.7,3466.9,0.83271731]
[1754156549936,0.09033328,3467.7,3466.9,1.30031731]
[1754156550536,0.09033328,3467.7,3467.0,0.9335]
[1754156550916,0.95445231,3467.6,3466.9,0.83271731]
[1754156551116,1.01603328,3467.5,3466.5,0.002]
[1754156551317,0.09033328,3467.4,3466.5,0.002]
[1754156551558,1.01603328,3467.4,3466.5,0.002]
[1754156551756,0.09033328,3467.3,3466.5,0.002]
[1754156551978,1.01603328,3467.3,3466.5,0.002]
[1754156552274,0.09034185,3467.2,3466.5,0.002]
[1754156552563,1.01604185,3467.2,3466.5,0.002]
[1754156552727,0.09034185,3467.1,3466.5,0.002]
[1754156553062,1.01604185,3467.1,3466.5,0.002]
[1754156553265,0.09034185,3467.0,3466.5,0.002]
[1754156553494,0.58424185,3467.0,3466.5,0.002]
[1754156553772,0.4318,3466.9,3466.5,0.002]
[1754156554138,0.9257,3466.8,3466.5,0.002]
[1754156554652,0.9257,3466.7,3466.5,0.002]
[1754156554868,0.4939,3466.6,3466.5,0.002]
[1754156555366,0.4318,3467.1,3466.5,0.002]
[1754156555524,0.4318,3467.4,3466.5,0.002]
[1754156555730,0.09033878,3467.3,3466.6,0.4676]
[1754156556832,0.4939,3467.6,3466.7,0.49474587]
[1754156557044,0.09033878,3467.5,3466.8,0.4676]
[1754156557260,0.09033878,3467.7,3466.9,0.02884421]
[1754156557450,0.09033878,3467.7,3467.0,0.9335]
[1754156557736,0.09033878,3467.7,3466.8,7.36482804]
[1754156557941,0.09033878,3467.9,3466.9,1.6699828]
[1754156558123,0.0903281,3467.9,3467.0,0.96234338]
[1754156558541,0.0903281,3467.9,3467.1,0.9335]
[1754156558874,0.0903281,3468.0,3467.2,0.02884171]
[1754156559365,0.0903281,3468.3,3467.3,8.29832804]
[1754156559567,0.0903281,3468.3,3467.4,1.68816233]
[1754156559732,0.80164201,3468.3,3467.0,0.4676]
[1754156560066,1.04478041,3468.2,3467.0,0.4676]
[1754156560262,1.0160281,3468.1,3467.0,0.4676]
[1754156560564,30.0,3467.9,3466.5,3.002]
[1754156560746,1.04478041,3467.8,3466.7,0.4676]
[1754156560943,0.4318,3467.8,3466.7,0.4676]
[1754156561153,0.4939,3467.7,3466.7,0.4676]
[1754156561842,0.4318,3467.6,3466.7,0.4676]
[1754156562057,0.4318,3467.6,3466.5,1.2612828]
[1754156562372,0.58423201,3467.5,3466.6,0.69946233]
[1754156562549,0.4939,3467.5,3466.5,0.4696]
[1754156562949,0.4318,3467.4,3466.5,0.4696]
[1754156563471,0.4939,3467.3,3466.5,0.4696]
[1754156564851,0.4939,3467.3,3466.6,0.4659]
[1754156566437,0.4939,3467.3,3466.7,0.4676]
[1754156567262,0.70565847,3468.3,3466.9,9.52339289]
[1754156567584,1.01602954,3468.2,3467.0,0.96234338]
[1754156567738,0.09032954,3468.1,3467.0,0.49474338]
[1754156567938,0.4939,3468.0,3467.1,0.90997109]
[1754156568141,0.09032954,3467.9,3467.2,0.9335]
[1754156568336,0.09032954,3468.2,3467.2,0.02884171]
[1754156568637,0.09032954,3468.1,3467.3,0.9335]
[1754156568850,0.09032954,3468.2,3467.3,0.9335]
[1754156569050,0.09032954,3468.1,3467.3,0.9335]
[1754156569269,0.09032954,3468.2,3467.3,0.9335]
[1754156569539,1.01602954,3468.1,3467.1,0.4676]
[1754156569767,0.09032954,3468.0,3467.2,0.9335]
[1754156570074,0.09032954,3468.0,3467.4,9.52339289]
[1754156570250,0.09032954,3468.3,3467.4,9.52339289]
[1754156570452,0.09032954,3468.3,3467.5,0.9335]
[1754156570660,0.09032954,3468.3,3467.6,0.4676]
[1754156570861,0.09032954,3468.3,3467.6,0.9335]
[1754156571065,0.09032954,3468.3,3467.7,0.4676]
[1754156571454,0.09032954,3468.3,3467.8,0.4659]
[1754156571662,0.09030842,3468.3,3467.8,0.4659]
[1754156571971,0.09030842,3468.3,3467.9,0.95443589]
[1754156572173,0.001,3468.5,3468.0,0.9256]
[1754156572695,0.001,3468.5,3468.1,0.9256]
[1754156573479,0.001,3468.5,3468.2,0.9256]
[1754156573768,0.001,3468.5,3467.7,0.9256]
[1754156573988,0.001,3468.5,3467.9,9.52339289]
[1754156574192,0.001,3468.5,3468.0,0.02883506]
[1754156574475,0.001,3468.5,3468.0,0.95443506]
[1754156574974,0.001,3468.5,3468.1,0.9256]
[1754156575189,0.001,3468.5,3468.2,0.0288334]
[1754156575338,0.001,3468.5,3468.2,0.9256]
[1754156575867,0.001,3468.5,3468.3,0.9256]
[1754156576383,0.001,3468.5,3468.4,0.9256]
[1754156577076,0.001,3468.5,3468.4,10.44899289]
[1754156577281,0.001,3468.5,3468.4,11.49389218]
[1754156578570,0.001,3468.5,3468.4,1.04489929]
[1754156578770,0.001,3468.5,3468.0,0.9256]
[1754156578975,0.4728,3468.5,3468.0,0.9256]
[1754156579990,0.001,3468.5,3468.1,0.9256]
[1754156580494,0.001,3468.5,3468.1,0.4679]
[1754156580771,0.001,3468.5,3468.2,0.9256]
[1754156581157,0.001,3468.5,3468.3,0.9256]